fUSD/lending_fUSD_20240404
["ID","MTS","AMOUNT","RATE_DAILY","PERIOD"]
[321461034,1712200325017,-500.0,0.0005589,2]
[321461035,1712200325026,-500.0,0.0005589,120]
[321461036,1712200325036,-1207.23,0.0005589,30]
[321461037,1712200325046,-500.0,0.0005589,120]
[321461038,1712200325056,-198.86149,0.0005589,120]
[321461039,1712200325066,-500.0,0.0005589,120]
[321461040,1712200325076,-500.0,0.0005589,120]
[321461041,1712200325085,-500.0,0.0005589,120]
[321461042,1712200325094,-897.12,0.0005589,120]
[321461043,1712200325103,-198.86149,0.0005589,120]
[321461044,1712200325114,-367.93818542,0.0005589,120]
[321461045,1712200325124,-500.0,0.0005589,120]
[321461046,1712200325134,-535.29956688,0.0005589,60]
[321461047,1712200325143,-940.76,0.0005589,120]
[321461048,1712200325153,-500.0,0.0005589,120]
[321461049,1712200325162,-511.27,0.0005589,120]
[321461050,1712200325172,-500.0,0.0005589,120]
[321461051,1712200325181,-500.0,0.0005589,120]
[321461052,1712200325190,-1291.56,0.0005589,120]
[321461053,1712200325200,-500.0,0.0005589,120]
[321461054,1712200325209,-1169.61,0.0005589,120]
[321461055,1712200325219,-151.0,0.0005589,120]
[321461056,1712200325228,-1966.91,0.0005589,120]
[321461057,1712200325238,-653.18,0.0005589,120]
[321461058,1712200325246,-579.59,0.0005589,120]
[321461059,1712200325256,-888.0,0.0005589,120]
[321461060,1712200325265,-1199.82,0.0005589,120]
[321461061,1712200325274,-500.0,0.0005589,120]
[321461062,1712200325283,-567.67,0.0005589,120]
[321461063,1712200325293,-500.0,0.0005589,120]
[321461064,1712200325302,-1162.9,0.0005589,120]
[321461065,1712200325312,-1481.02,0.0005589,120]
[321461066,1712200325321,-500.0,0.0005589,120]
[321461067,1712200325330,-957.29,0.0005589,120]
[321461068,1712200325339,-536.12,0.0005589,120]
[321461069,1712200325349,-185.406329,0.0005589,120]
[321461070,1712200325360,-702.57,0.0005589,120]
[321461071,1712200325369,-628.45,0.0005589,120]
[321461072,1712200325379,-532.29,0.0005589,120]
[321461073,1712200325389,-181.50702741,0.0005589,120]
[321461074,1712200325398,-185.406329,0.0005589,120]
[321461075,1712200325407,-1230.49,0.0005589,120]
[321461076,1712200325416,-500.0,0.0005589,120]
[321461077,1712200325425,-500.0,0.0005589,120]
[321461078,1712200325434,-1354.79,0.0005589,120]
[321461079,1712200325444,-500.0,0.0005589,120]
[321461080,1712200325454,-500.0,0.0005589,120]
[321461081,1712200325464,-500.0,0.0005589,120]
[321461082,1712200325474,-594.72,0.0005589,120]
[321461083,1712200325483,-1168.31,0.0005589,120]
[321461084,1712200325493,-745.92,0.0005589,120]
[321461085,1712200325502,-519.19,0.0005589,120]
[321461086,1712200325511,-510.35,0.0005589,120]
[321461087,1712200325521,-500.0,0.0005589,120]
[321461088,1712200325531,-538.5,0.0005589,120]
[321461089,1712200325540,-1661.46,0.0005589,120]
[321461090,1712200325549,-500.0,0.0005589,120]
[321461091,1712200325559,-810.25,0.0005589,120]
[321461092,1712200325569,-500.0,0.0005589,120]
[321461093,1712200325579,-500.0,0.0005589,120]
[321461094,1712200325589,-519.32,0.0005589,120]
[321461095,1712200325599,-856.61,0.0005589,120]
[321461096,1712200325610,-157.80640804,0.0005589,120]
[321461097,1712200325625,-1084.29098945,0.0005589,120]
[321461098,1712200325635,-193.775026,0.0005589,120]
[321461099,1712200325646,-1325.1,0.0005589,120]
[321461100,1712200325656,-500.0,0.0005589,120]
[321461101,1712200325666,-150.0,0.0005589,120]
[321461102,1712200325676,-193.775026,0.0005589,120]
[321461103,1712200325686,-1704.02,0.0005589,120]
[321461104,1712200325696,-843.85,0.0005589,120]
[321461105,1712200325706,-500.0,0.0005589,120]
[321461106,1712200325716,-500.0,0.0005589,120]
[321461107,1712200325726,-734.5,0.0005589,120]
[321461108,1712200325736,-500.0,0.0005589,120]
[321461109,1712200325746,-500.0,0.0005589,120]
[321461110,1712200325756,-1242.09,0.0005589,120]
[321461111,1712200325767,-529.61651132,0.0005589,120]
[321461112,1712200325776,-1149.11,0.0005589,120]
[321461113,1712200325786,-500.0,0.0005589,120]
[321461114,1712200325796,-801.39,0.0005589,120]
[321461115,1712200325806,-500.0,0.0005589,120]
[321461116,1712200325816,-636.22,0.0005589,120]
[321461117,1712200325826,-500.0,0.0005589,120]
[321461118,1712200325835,-500.0,0.0005589,120]
[321461119,1712200325845,-500.0,0.0005589,120]
[321461120,1712200325855,-1372.43,0.0005589,120]
[321461121,1712200325873,-338.216261,0.0005589,120]
[321461122,1712200325883,-500.0,0.0005589,120]
[321461123,1712200325893,-338.216261,0.0005589,120]
[321461124,1712200325903,-500.0,0.0005589,120]
[321461125,1712200325912,-500.0,0.0005589,120]
[321461126,1712200325922,-500.0,0.0005589,120]
[321461127,1712200325932,-750.539528,0.0005589,30]
[321461128,1712200325942,-556.7,0.0005589,120]
[321461129,1712200325953,-690.45,0.0005589,120]
[321461130,1712200325964,-828.45,0.0005589,120]
[321461131,1712200325973,-1151.88,0.0005589,120]
[321461132,1712200325982,-750.539528,0.0005589,30]
[321461133,1712200325992,-223.76888,0.0005589,120]
[321461134,1712200326002,-1261.2,0.0005589,120]
[321461135,1712200326012,-223.76888,0.0005589,120]
[321461136,1712200326020,-1473.05,0.0005589,120]
[321461137,1712200326030,-500.0,0.0005589,120]
[321461138,1712200326040,-500.0,0.0005589,120]
[321461139,1712200326050,-1240.18,0.0005589,120]
[321461140,1712200326059,-382.99231454,0.0005589,120]
[321461141,1712200326069,-735.68,0.0005589,120]
[321461142,1712200326079,-151.0,0.0005589,120]
[321461143,1712200326089,-833.51,0.0005589,120]
[321461144,1712200326098,-700.88,0.0005589,120]
[321461145,1712200326107,-1814.63,0.0005589,120]
[321461146,1712200326121,-1000.0,0.0005589,120]
[321461147,1712200326130,-439.2721973,0.0005589,120]
[321461148,1712200326139,-500.0,0.0005589,120]
[321461149,1712200326148,-500.0,0.0005589,120]
[321461150,1712200326157,-500.0,0.0005589,120]
[321461151,1712200326168,-289.61050122,0.0005589,120]
[321461152,1712200326177,-500.0,0.0005589,120]
[321461153,1712200326187,-982.74,0.0005589,120]
[321461154,1712200326197,-293.836972,0.0005589,120]
[321461155,1712200326207,-979.79,0.0005589,120]
[321461156,1712200326216,-500.0,0.0005589,120]
[321461157,1712200326228,-545.1,0.0005589,120]
[321461158,1712200326238,-500.0,0.0005589,120]
[321461159,1712200326248,-560.66,0.0005589,120]
[321461160,1712200326258,-500.0,0.0005589,120]
[321461161,1712200326267,-618.23,0.0005589,120]
[321461162,1712200326278,-1375.95,0.0005589,120]
[321461163,1712200326288,-741.9,0.0005589,120]
[321461164,1712200326298,-500.0,0.0005589,120]
[321461165,1712200326307,-500.0,0.0005589,120]
[321461166,1712200326527,-361.491422,0.0005589,120]
[321461167,1712200326547,-500.0,0.0005589,120]
[321461168,1712200326557,-361.491422,0.0005589,120]
[321461169,1712200326566,-1688.43,0.0005589,120]
[321461170,1712200326576,-1668.8,0.0005589,120]
[321461171,1712200326585,-151.0,0.0005589,120]
[321461172,1712200326594,-500.0,0.0005589,120]
[321461173,1712200326604,-1118.0,0.0005589,120]
[321461174,1712200326616,-500.0,0.0005589,120]
[321461175,1712200326626,-500.0,0.0005589,120]
[321461176,1712200326635,-954.25,0.0005589,120]
[321461177,1712200326644,-151.0,0.0005589,120]
[321461178,1712200326653,-500.0,0.0005589,120]
[321461179,1712200326663,-500.0,0.0005589,120]
[321461180,1712200326673,-1884.27,0.0005589,120]
[321461181,1712200326682,-1030.65,0.0005589,120]
[321461182,1712200326692,-500.0,0.0005589,120]
[321461183,1712200326701,-619.94,0.0005589,120]
[321461184,1712200326711,-1616.86,0.0005589,120]
[321461185,1712200326720,-500.0,0.0005589,120]
[321461186,1712200326729,-500.0,0.0005589,120]
[321461187,1712200326739,-1251.78,0.0005589,120]
[321461188,1712200326748,-500.0,0.0005589,120]
[321461189,1712200326758,-1329.29,0.0005589,120]
[321461190,1712200326768,-475.57064093,0.0005589,120]
[321461191,1712200326777,-288.633246,0.0005589,120]
[321461192,1712200326787,-500.0,0.0005589,120]
[321461193,1712200326797,-288.633246,0.0005589,120]
[321461194,1712200326806,-151.0,0.0005589,120]
[321461195,1712200326816,-896.81,0.0005589,2]
[321461196,1712200326826,-702.32,0.0005589,120]
[321461197,1712200326835,-1181.29,0.0005589,120]
[321461198,1712200326846,-1340.28,0.0005589,120]
[321461199,1712200326856,-500.0,0.0005589,120]
[321461200,1712200326868,-966.98,0.0005589,120]
[321461201,1712200326880,-6357.1,0.0005589,120]
[321461202,1712200326889,-890.32,0.0005589,120]
[321461203,1712200326899,-500.0,0.0005589,120]
[321461204,1712200326909,-483.21229096,0.0005589,120]
[321461205,1712200326919,-5000.0,0.0005589,120]
[321461206,1712200326929,-500.0,0.0005589,120]
[321461207,1712200326939,-151.0,0.0005589,120]
[321461208,1712200326949,-1721.46,0.0005589,120]
[321461209,1712200326959,-1386.12,0.0005589,120]
[321461210,1712200326970,-500.0,0.0005589,120]
[321461211,1712200326980,-821.48,0.0005589,120]
[321461212,1712200326989,-500.0,0.0005589,120]
[321461213,1712200326999,-579.431877,0.0005589,120]
[321461214,1712200327009,-1947.85,0.0005589,120]
[321461215,1712200327019,-579.431877,0.0005589,120]
[321461216,1712200327028,-500.0,0.0005589,120]
[321461217,1712200327038,-1400.11,0.0005589,120]
[321461218,1712200327048,-453.47685924,0.0005589,120]
[321461219,1712200327057,-1219.29,0.0005589,120]
[321461220,1712200327067,-621.62881613,0.0005589,120]
[321461221,1712200327076,-500.0,0.0005589,120]
[321461222,1712200327086,-1116.96,0.0005589,120]
[321461223,1712200327095,-2098.39,0.0005589,120]
[321461224,1712200327104,-3864.9,0.0005589,120]
[321461225,1712200327116,-954.49,0.0005589,120]
[321461226,1712200327126,-500.0,0.0005589,120]
[321461227,1712200327135,-534.21,0.0005589,120]
[321461228,1712200327145,-1845.84,0.0005589,120]
[321461229,1712200327154,-1293.92,0.0005589,120]
[321461230,1712200327164,-500.0,0.0005589,120]
[321461231,1712200327173,-2905.09,0.0005589,120]
[321461232,1712200327183,-535.41173714,0.0005589,120]
[321461233,1712200327193,-230.324354,0.0005589,120]
[321461234,1712200327202,-500.0,0.0005589,120]
[321461235,1712200327212,-647.32,0.0005589,120]
[321461236,1712200327222,-2444.5,0.0005589,120]
[321461237,1712200327231,-500.0,0.0005589,120]
[321461238,1712200327240,-5301.8,0.0005589,120]
[321461239,1712200327250,-230.324354,0.0005589,120]
[321461240,1712200327260,-157.40719442,0.0005589,120]
[321461241,1712200327269,-500.0,0.0005589,120]
[321461242,1712200327279,-500.0,0.0005589,120]
[321461243,1712200327288,-2706.47,0.0005589,120]
[321461244,1712200327298,-534.88,0.0005589,120]
[321461245,1712200327308,-527.59471751,0.0005589,120]
[321461246,1712200327317,-596.6,0.0005589,120]
[321461247,1712200327327,-500.0,0.0005589,120]
[321461248,1712200327336,-3864.29,0.0005589,120]
[321461249,1712200327347,-1563.7,0.0005589,120]
[321461250,1712200327356,-500.0,0.0005589,120]
[321461251,1712200327369,-500.0,0.0005589,120]
[321461252,1712200327378,-2328.79,0.0005589,120]
[321461253,1712200327388,-2730.07,0.0005589,120]
[321461254,1712200327397,-5451.86,0.0005589,120]
[321461255,1712200327406,-638.42,0.0005589,120]
[321461256,1712200327416,-534.29,0.0005589,120]
[321461257,1712200327426,-151.0,0.0005589,120]
[321461258,1712200327435,-694.4,0.0005589,120]
[321461259,1712200327445,-523.74,0.0005589,120]
[321461260,1712200327454,-500.0,0.0005589,30]
[321461261,1712200327464,-858.40166,0.0005589,30]
[321461262,1712200327473,-500.0,0.0005589,120]
[321461263,1712200327482,-846.32,0.0005589,120]
[321461264,1712200327491,-985.74,0.0005589,120]
[321461265,1712200327501,-3423.85,0.0005589,120]
[321461266,1712200327510,-500.0,0.0005589,120]
[321461267,1712200327519,-858.40166,0.0005589,30]
[321461268,1712200327529,-4903.62,0.0005589,120]
[321461269,1712200327538,-2225.21,0.0005589,120]
[321461270,1712200327547,-4099.83,0.0005589,120]
[321461271,1712200327557,-500.0,0.0005589,120]
[321461272,1712200327566,-769.61,0.0005589,120]
[321461273,1712200327575,-3165.76,0.0005589,120]
[321461274,1712200327585,-500.0,0.0005589,120]
[321461275,1712200327595,-1040.28,0.0005589,120]
[321461276,1712200327605,-500.0,0.0005589,120]
[321461277,1712200327617,-9130.88,0.0005589,120]
[321461278,1712200327627,-5027.15,0.0005589,120]
[321461279,1712200327638,-500.0,0.0005589,120]
[321461280,1712200327656,-546.03,0.0005589,120]
[321461281,1712200327677,-2873.37,0.0005589,120]
[321461282,1712200327689,-500.0,0.0005589,120]
[321461283,1712200327698,-500.0,0.0005589,120]
[321461284,1712200327709,-705.68,0.0005589,120]
[321461285,1712200327720,-1850.68,0.0005589,120]
[321461286,1712200327731,-782.7,0.0005589,120]
[321461287,1712200327741,-165.37555106,0.0005589,120]
[321461288,1712200327750,-594.92,0.0005589,120]
[321461289,1712200327760,-500.0,0.0005589,120]
[321461290,1712200327770,-4035.15,0.0005589,120]
[321461291,1712200327779,-1606.71,0.0005589,120]
[321461292,1712200327789,-2413.37,0.0005589,120]
[321461293,1712200327798,-1349.71,0.0005589,120]
[321461294,1712200327807,-551.94,0.0005589,120]
[321461295,1712200327817,-836.33,0.0005589,120]
[321461296,1712200327827,-1282.09,0.0005589,120]
[321461297,1712200327836,-945.36,0.0005589,120]
[321461298,1712200327845,-151.0,0.0005589,120]
[321461299,1712200327854,-500.0,0.0005589,120]
[321461300,1712200327866,-500.0,0.0005589,120]
[321461301,1712200327876,-1406.21,0.0005589,120]
[321461302,1712200327885,-946.04,0.0005589,120]
[321461303,1712200327895,-641.98,0.0005589,120]
[321461304,1712200327906,-500.0,0.0005589,120]
[321461305,1712200327915,-898.28,0.0005589,120]
[321461306,1712200327925,-500.0,0.0005589,120]
[321461307,1712200327934,-151.0,0.0005589,120]
[321461308,1712200327945,-627.13,0.0005589,120]
[321461309,1712200327955,-8609.89,0.0005589,120]
[321461310,1712200327965,-5468.41,0.0005589,120]
[321461311,1712200327974,-1151.94,0.0005589,120]
[321461312,1712200327984,-1889.11,0.0005589,120]
[321461313,1712200327994,-151.0,0.0005589,120]
[321461314,1712200328003,-151.0,0.0005589,120]
[321461315,1712200328013,-500.0,0.0005589,120]
[321461316,1712200328022,-525.95,0.0005589,120]
[321461317,1712200328032,-53073.95,0.0005589,120]
[321461318,1712200328043,-6399.43,0.0005589,120]
[321461319,1712200328052,-562.40726655,0.0005589,120]
[321461320,1712200328062,-645.37,0.0005589,120]
[321461321,1712200328071,-151.0,0.0005589,7]
[321461322,1712200328081,-1683.47,0.0005589,120]
[321461323,1712200328090,-500.0,0.0005589,120]
[321461324,1712200328100,-6691.4,0.0005589,120]
[321461325,1712200328109,-643.70934669,0.0005589,120]
[321461326,1712200328120,-1927.66,0.0005589,120]
[321461327,1712200328130,-611.07,0.0005589,120]
[321461328,1712200328140,-1030.18,0.0005589,120]
[321461329,1712200328150,-604.27,0.0005589,120]
[321461330,1712200328159,-5148.74,0.0005589,120]
[321461331,1712200328169,-8800.38,0.0005589,120]
[321461332,1712200328179,-500.0,0.0005589,120]
[321461333,1712200328188,-1657.49,0.0005589,120]
[321461334,1712200328198,-2507.81,0.0005589,120]
[321461335,1712200328207,-614.29,0.0005589,120]
[321461336,1712200328217,-825.58,0.0005589,120]
[321461337,1712200328226,-989.45,0.0005589,120]
[321461338,1712200328236,-852.93,0.0005589,120]
[321461339,1712200328246,-2396.3,0.0005589,120]
[321461340,1712200328256,-500.0,0.0005589,120]
[321461341,1712200328266,-1134.76,0.0005589,120]
[321461342,1712200328276,-500.0,0.0005589,120]
[321461343,1712200328286,-5513.42,0.0005589,120]
[321461344,1712200328295,-1852.1,0.0005589,7]
[321461345,1712200328305,-571.44,0.0005589,120]
[321461346,1712200328315,-2968.67,0.0005589,120]
[321461347,1712200328325,-2345.81,0.0005589,120]
[321461348,1712200328336,-151.0,0.0005589,120]
[321461349,1712200328346,-200.701774,0.0005589,120]
[321461350,1712200328356,-3000.0,0.0005589,120]
[321461351,1712200328369,-500.0,0.0005589,120]
[321461352,1712200328379,-1250.54,0.0005589,120]
[321461353,1712200328390,-500.0,0.0005589,120]
[321461354,1712200328400,-2079.2,0.0005589,120]
[321461355,1712200328409,-500.0,0.0005589,120]
[321461356,1712200328419,-200.701774,0.0005589,120]
[321461357,1712200328429,-500.0,0.0005589,120]
[321461358,1712200328438,-500.0,0.0005589,120]
[321461359,1712200328448,-3247.17,0.0005589,120]
[321461360,1712200328458,-500.0,0.0005589,120]
[321461361,1712200328468,-871.75,0.0005589,120]
[321461362,1712200328478,-902.7,0.0005589,120]
[321461363,1712200328488,-500.0,0.0005589,120]
[321461364,1712200328498,-159.656585,0.0005589,120]
[321461365,1712200328509,-217.97847,0.0005589,30]
[321461366,1712200328518,-15898.05,0.0005589,120]
[321461367,1712200328528,-3358.82,0.0005589,120]
[321461368,1712200328539,-690.28,0.0005589,120]
[321461369,1712200328548,-3349.18,0.0005589,120]
[321461370,1712200328558,-1202.73,0.0005589,120]
[321461371,1712200328567,-217.97847,0.0005589,30]
[321461372,1712200328578,-3733.56,0.0005589,120]
[321461373,1712200328587,-3909.57,0.0005589,120]
[321461374,1712200328597,-2507.95,0.0005589,120]
[321461375,1712200328607,-2808.48,0.0005589,120]
[321461376,1712200328619,-500.0,0.0005589,120]
[321461377,1712200328628,-500.0,0.0005589,120]
[321461378,1712200328639,-151.0,0.0005589,120]
[321461379,1712200328649,-556.58,0.0005589,120]
[321461380,1712200328659,-755.27,0.0005589,120]
[321461381,1712200328669,-500.0,0.0005589,120]
[321461382,1712200328679,-2313.89,0.0005589,120]
[321461383,1712200328690,-2398.13,0.0005589,120]
[321461384,1712200328700,-425.53972843,0.0005589,120]
[321461385,1712200328709,-14500.53,0.0005589,120]
[321461386,1712200328720,-1675.35,0.0005589,120]
[321461387,1712200328730,-567.86726222,0.0005589,120]
[321461388,1712200328739,-2367.07,0.0005589,120]
[321461389,1712200328749,-151.0,0.0005589,120]
[321461390,1712200328759,-2722.45,0.0005589,120]
[321461391,1712200328769,-1253.38,0.0005589,120]
[321461392,1712200328779,-500.0,0.0005589,120]
[321461393,1712200328788,-552.28,0.0005589,120]
[321461394,1712200328798,-1188.53,0.0005589,120]
[321461395,1712200328807,-1586.48,0.0005589,120]
[321461396,1712200328817,-500.0,0.0005589,120]
[321461397,1712200328827,-2639.18,0.0005589,120]
[321461398,1712200328836,-500.0,0.0005589,120]
[321461399,1712200328846,-500.0,0.0005589,120]
[321461400,1712200328855,-500.0,0.0005589,120]
[321461401,1712200328867,-500.0,0.0005589,120]
[321461402,1712200328878,-1457.76,0.0005589,120]
[321461403,1712200328888,-1660.69,0.0005589,120]
[321461404,1712200328898,-2986.02,0.0005589,120]
[321461405,1712200328907,-1877.49,0.0005589,120]
[321461406,1712200328918,-771.63,0.0005589,120]
[321461407,1712200328928,-2410.62,0.0005589,120]
[321461408,1712200328937,-1159.24,0.0005589,120]
[321461409,1712200328947,-3214.36,0.0005589,120]
[321461410,1712200328958,-903.02,0.0005589,120]
[321461411,1712200328968,-924.61,0.0005589,120]
[321461412,1712200328978,-500.0,0.0005589,120]
[321461413,1712200328987,-292.667321,0.0005589,120]
[321461414,1712200328997,-500.0,0.0005589,120]
[321461415,1712200329094,-500.0,0.0005589,120]
[321461416,1712200329104,-292.667321,0.0005589,120]
[321461417,1712200329114,-40448.75,0.0005589,120]
[321461418,1712200329123,-635.05755519,0.0005589,120]
[321461419,1712200329133,-1955.63,0.0005589,120]
[321461420,1712200329143,-2432.48,0.0005589,120]
[321461421,1712200329152,-500.0,0.0005589,120]
[321461422,1712200329162,-627.49121096,0.0005589,120]
[321461423,1712200329171,-500.0,0.0005589,120]
[321461424,1712200329180,-1208.03,0.0005589,120]
[321461425,1712200329190,-3666.55,0.0005589,120]
[321461426,1712200329200,-500.0,0.0005589,120]
[321461427,1712200329210,-565.01,0.0005589,120]
[321461428,1712200329220,-2721.89,0.0005589,120]
[321461429,1712200329229,-1251.21,0.0005589,120]
[321461430,1712200329239,-593.12,0.0005589,120]
[321461431,1712200329249,-6048.98,0.0005589,120]
[321461432,1712200329258,-1635.1,0.0005589,120]
[321461433,1712200329267,-500.0,0.0005589,120]
[321461434,1712200329277,-8828.9,0.0005589,120]
[321461435,1712200329286,-500.0,0.0005589,120]
[321461436,1712200329296,-1504.24,0.0005589,120]
[321461437,1712200329305,-500.0,0.0005589,120]
[321461438,1712200329315,-835.11,0.0005589,120]
[321461439,1712200329325,-18220.01,0.0005589,120]
[321461440,1712200329335,-5900.97,0.0005589,120]
[321461441,1712200329345,-633.77842519,0.0005589,120]
[321461442,1712200329355,-521.58496925,0.0005589,120]
[321461443,1712200329365,-573.39101195,0.0005589,120]
[321461444,1712200329375,-881.61,0.0005589,120]
[321461445,1712200329385,-1186.29,0.0005589,120]
[321461446,1712200329395,-22689.12,0.0005589,120]
[321461447,1712200329404,-528.6,0.0005589,120]
[321461448,1712200329414,-537.94930465,0.0005589,120]
[321461449,1712200329424,-500.0,0.0005589,120]
[321461450,1712200329433,-500.0,0.0005589,120]
[321461451,1712200329443,-500.0,0.0005589,120]
[321461452,1712200329454,-3620.99,0.0005589,120]
[321461453,1712200329464,-2635.7,0.0005589,120]
[321461454,1712200329473,-500.0,0.0005589,120]
[321461455,1712200329483,-500.0,0.0005589,120]
[321461456,1712200329493,-650.57,0.0005589,120]
[321461457,1712200329503,-1339.71,0.0005589,120]
[321461458,1712200329512,-500.0,0.0005589,120]
[321461459,1712200329521,-151.0,0.0005589,120]
[321461460,1712200329530,-500.0,0.0005589,120]
[321461461,1712200329540,-4460.99,0.0005589,120]
[321461462,1712200329550,-500.0,0.0005589,120]
[321461463,1712200329559,-2237.15,0.0005589,21]
[321461464,1712200329569,-1711.13,0.0005589,7]
[321461465,1712200329578,-500.0,0.0005589,120]
[321461466,1712200329587,-1691.17,0.0005589,120]
[321461467,1712200329597,-658.56,0.0005589,120]
[321461468,1712200329606,-7361.59,0.0005589,120]
[321461469,1712200329616,-1097.27,0.0005589,120]
[321461470,1712200329626,-4641.79,0.0005589,120]
[321461471,1712200329635,-500.0,0.0005589,120]
[321461472,1712200329644,-534.67199615,0.0005589,120]
[321461473,1712200329654,-259.428547,0.0005589,120]
[321461474,1712200329664,-5803.21,0.0005589,120]
[321461475,1712200329674,-500.0,0.0005589,120]
[321461476,1712200329683,-4333.28,0.0005589,120]
[321461477,1712200329693,-5008.64,0.0005589,120]
[321461478,1712200329702,-259.428547,0.0005589,120]
[321461479,1712200329711,-1131.15,0.0005589,120]
[321461480,1712200329721,-812.33,0.0005589,120]
[321461481,1712200329730,-15539.97,0.0005589,120]
[321461482,1712200329739,-162.974525,0.0005589,120]
[321461483,1712200329748,-2073.37,0.0005589,120]
[321461484,1712200329757,-500.0,0.0005589,120]
[321461485,1712200329767,-500.0,0.0005589,120]
[321461486,1712200329776,-1653.07,0.0005589,120]
[321461487,1712200329786,-162.974525,0.0005589,120]
[321461488,1712200329795,-151.0,0.0005589,120]
[321461489,1712200329805,-786.18,0.0005589,120]
[321461490,1712200329814,-500.0,0.0005589,120]
[321461491,1712200329823,-500.0,0.0005589,120]
[321461492,1712200329832,-500.0,0.0005589,120]
[321461493,1712200329842,-577.50414196,0.0005589,120]
[321461494,1712200329852,-3101.5,0.0005589,120]
[321461495,1712200329862,-4002.83,0.0005589,120]
[321461496,1712200329876,-500.0,0.0005589,120]
[321461497,1712200329885,-1000.0,0.0005589,120]
[321461498,1712200329895,-780.89,0.0005589,120]
[321461499,1712200329904,-151.0,0.0005589,120]
[321461500,1712200329914,-1099.33,0.0005589,120]
[321461501,1712200329924,-1810.31,0.0005589,120]
[321461502,1712200329934,-500.0,0.0005589,120]
[321461503,1712200329943,-992.63,0.0005589,120]
[321461504,1712200329955,-2719.84,0.0005589,120]
[321461505,1712200329965,-4594.4,0.0005589,120]
[321461506,1712200329974,-461.879019,0.0005589,120]
[321461507,1712200329984,-500.0,0.0005589,120]
[321461508,1712200329993,-461.879019,0.0005589,120]
[321461509,1712200330003,-3281.58,0.0005589,120]
[321461510,1712200330013,-4452.74,0.0005589,120]
[321461511,1712200330023,-8315.86,0.0005589,30]
[321461512,1712200330032,-156.99443614,0.0005589,120]
[321461513,1712200330042,-500.0,0.0005589,2]
[321461514,1712200330052,-151.0,0.0005589,120]
[321461515,1712200330062,-154.481039,0.0005589,120]
[321461516,1712200330072,-5676.39,0.0005589,120]
[321461517,1712200330082,-799.28,0.0005589,120]
[321461518,1712200330092,-500.0,0.0005589,120]
[321461519,1712200330101,-500.0,0.0005589,120]
[321461520,1712200330111,-2184.04,0.0005589,120]
[321461521,1712200330121,-2848.68,0.0005589,120]
[321461522,1712200330130,-871.82,0.0005589,120]
[321461523,1712200330140,-500.0,0.0005589,120]
[321461524,1712200330150,-515.39816552,0.0005589,120]
[321461525,1712200330159,-513.25,0.0005589,120]
[321461526,1712200330169,-500.0,0.0005589,120]
[321461527,1712200330178,-577.33,0.0005589,120]
[321461528,1712200330188,-1635.35,0.0005589,120]
[321461529,1712200330198,-2850.37,0.0005589,120]
[321461530,1712200330208,-500.0,0.0005589,120]
[321461531,1712200330219,-4917.1,0.0005589,120]
[321461532,1712200330229,-500.0,0.0005589,120]
[321461533,1712200330239,-888.72,0.0005589,120]